Cogmind - Beta 14 @@@ ROGUE MODE // 2024.09.19 @ 18:56:54 Player: Caluan Result: Destroyed by G-34 Mercenary with Small Laser Performance ------------- Evolutions (0) 0 Regions Visited (1) 200 Robots Destroyed (16) 80 Value Destroyed (431) 431 Prototype IDs (2) 40 Alien Tech Used (0) 0 Bonus (0) 0 TOTAL SCORE: 751 Bonus ------- None Cogmind --------- Core Integrity 0/250 Matter 248/300 Energy 43/100 System Corruption 0% Temperature Warning (315) Movement Walking (190) Ox1 Location -10/Materials Parts ------- > --- POWER (1) -------- (None) > --- PROPULSION (2) --- Aluminum Leg Aluminum Leg > --- UTILITY (2) ------ Large Storage Unit > --- WEAPON (2) ------- Beam Cannon > --- INVENTORY (15) --- Aluminum Leg Aluminum Leg Aluminum Leg Improved Terrain Scanner Rocket Launcher Rocket Launcher Peak State ------------ > --- POWER ------------ Light Ion Engine > --- PROPULSION ------- Light Treads Light Treads > --- UTILITY ---------- Small Storage Unit Seismic Detector > --- WEAPON ----------- EM Shotgun EM Shotgun > --- INVENTORY -------- Light Ion Engine Aluminum Leg Aluminum Leg Improved Terrain Scanner Rocket Launcher Rocket Launcher [Rating: 10] Favorites ----------- Power Light Ion Engine Engine Light Ion Engine Propulsion Aluminum Leg Treads Light Treads Leg Aluminum Leg Utility Small Storage Unit Device Seismic Detector Storage Small Storage Unit Weapon EM Shotgun Energy Gun EM Shotgun Energy Cannon Beam Cannon Ballistic Gun Light Assault Rifle Build | -11 -10 ------- Run | Yrd Mat Slots Evolved . | . . Power . | . . Propulsion . | . . Utility . | . . Weapon . | . . Parts Attached 20 | 7 13 Power 4 | 1 3 Engine 4 | 1 3 Core . | . . Reactor . | . . Propulsion 7 | 2 5 Treads 2 | 2 . Leg 5 | . 5 Wheel . | . . Hover . | . . Flight . | . . Utility 3 | 2 1 Device 1 | 1 . Storage 2 | 1 1 Processor . | . . Hackware . | . . Protection . | . . Artifact . | . . Weapon 6 | 2 4 Energy Gun 4 | 1 3 Energy Cannon 1 | . 1 Ballistic Gun 1 | 1 . Ballistic Cannon . | . . Launcher . | . . Special Weapon . | . . Impact Weapon . | . . Slashing Weapon . | . . Piercing Weapon . | . . Special Melee Weapon . | . . Unidentified Prototypes . | . . Parts Lost 7 | . 7 Power 2 | . 2 Propulsion 2 | . 2 Utility 1 | . 1 Weapon 2 | . 2 Highest Loss Streak 6 | . 6 To Critical Strikes . | . . Average Slot Usage (%) 91 | . 91 Engine 13 | . 13 Treads 2 | . 2 Leg 24 | . 24 Device 1 | . 1 Storage 20 | . 20 Energy Gun 26 | . 26 Peak Build Rating 10 | 7 10 Average Rating 8 | 5 9 On Entrance 3 | . 7 Naked Turns . | . . Heaviest Build 34 | 12 34 Greatest Support 40 | 40 40 Greatest Overweight (x) 2 | . 2 Average Overweight (x) . | . . Largest Inventory Capacity 15 | 8 15 Average Capacity 12 | 7 13 Most Carried 11 | 5 11 Average Carried 7 | 2 8 Final Capacity 15 | 8 15 Final Carried 6 | 3 6 Class Distribution -------------------- 100% | Mutant Dominant Class ---------------- Mutant | -10/Materials Resources | -11 -10 ----------- Run | Yrd Mat Matter Collected 325 | 197 128 Remotely . | . . Salvage Created 588 | 41 547 Parts 27 | 3 24 Haulers Intercepted 1 | . 1 Recyclers Shooed . | . . Parts Field Recycled . | . . Retrieved Matter . | . . Parts Self-Destructed . | . . Prevented . | . . Kills | -11 -10 ------- Run | Yrd Mat Combat Hostiles Destroyed 9 | . 9 Guns 6 | . 6 Cannons 1 | . 1 AOE 2 | . 2 Classes Destroyed 6 | 1 5 Builder 1 | . 1 Tunneler 2 | 2 . Hauler 1 | . 1 Operator 1 | . 1 Watcher 2 | . 2 Grunt 9 | . 9 Best Kill Streak 3 | 1 3 Combat Bots Only 3 | . 3 Max Kills in Single Turn 2 | 1 2 Gunslinging . | . . Exploded 2 | . 2 Melee . | . . Uniques/NPCs Destroyed . | . . Combat | -11 -10 -------- Run | Yrd Mat Hostile Shots Fired 72 | . 72 Missed 17 | . 17 Damage Taken 983 | . 983 Core 259 | . 259 Absorbed by Shields . | . . Regen/Repaired (Parts) 45 | . 45 Core Remaining (%) 100 | 100 . Volleys Fired 45 | 12 33 Largest 2 | 2 2 Hottest 105 | 70 105 Shots Fired 83 | 24 59 Gun 74 | 24 50 Cannon 9 | . 9 Launcher . | . . Special . | . . Kinetic 12 | 12 . Thermal 21 | 12 9 Explosive . | . . Electromagnetic 50 | . 50 Robot Hit Streak 7 | 5 7 Robot Miss Streak 3 | 3 3 Penetration Max . | . . Secondary Targets . | . . Shots Hit Robots 58 | 15 43 Core Hits 29 | 3 26 Critical Kills . | . . Critical Parts Destroyed . | . . Critical Strikes . | . . Melee Attacks . | . . Impact . | . . Slashing . | . . Piercing . | . . Sneak Attacks . | . . Combat Hostiles . | . . Follow-up Attacks . | . . Damage Inflicted 985 | 146 839 Guns 691 | 146 545 Cannons 70 | . 70 Explosions 224 | . 224 Melee . | . . Ramming . | . . Kinetic 83 | 83 . Thermal 357 | 63 294 Explosive . | . . Electromagnetic 545 | . 545 Impact . | . . Slashing . | . . Piercing . | . . Highest Corruption . | . . Average Corruption . | . . Corruption Purged . | . . Corruption Blocked . | . . Overload Shots . | . . Overflow Damage 27 | . 27 Projectiles . | . . Explosions 27 | . 27 Melee . | . . Knockbacks . | . . Impact . | . . Kinetic . | . . Secondary . | . . Self-Inflicted Damage 295 | . 295 Shots 4 | . 4 Rammed . | . . Targets Rammed . | . . Kicked . | . . Crushed . | . . Highest Temperature 309 | 62 309 Average Temperature 74 | 27 88 Received Heat Transfer 387 | . 387 Siege Activations . | . . Robots Corrupted . | . . Combat Hostiles . | . . Parts Fried 4 | . 4 Impact Corruptions . | . . Robots Melted . | . . Combat Hostiles . | . . Parts Melted 2 | . 2 Heat Transferred 533 | 185 348 Parts Sabotaged . | . . Parts Stolen . | . . Parts Stripped . | . . Power Chain Reactions 4 | . 4 Alert | -11 -10 ------- Run | Yrd Mat Peak Influence 186 | 10 186 Initial 6 | . 6 Average 78 | 3 94 Maximum Alert Level . | . . Low Security (%) 100 | 100 100 Level 1 . | . . Level 2 . | . . Level 3 . | . . Level 4 . | . . Level 5 . | . . High Security . | . . Max Security . | . . Squads Dispatched 2 | . 2 Investigation 1 | . 1 Extermination . | . . Reinforcement 1 | . 1 Assault . | . . Garrison . | . . Intercept . | . . Searches Triggered . | . . Construction Impeded . | . . Haulers Reinforced . | . . Active Scanning Responses . | . . Cargo Convoy Interrupts . | . . Stealth | -11 -10 --------- Run | Yrd Mat Distress Signals 2 | . 2 Communications Jammed . | . . Distress Signals . | . . Times Spotted 17 | . 17 Peak Tracking Total 4 | . 4 Tactical Retreats 1 | . 1 Traps | -11 -10 ------- Run | Yrd Mat Traps Triggered 1 | . 1 Indirectly . | . . Trap Hack Attempts . | . . Triggered . | . . Disarmed 3 | . 3 Reprogrammed . | . . Reused . | . . Traps Extracted . | . . Installed . | . . Triggered . | . . Machines | -11 -10 ---------- Run | Yrd Mat Machines Disabled 3 | . 3 Max in Single Turn 3 | . 3 Machines Repaired . | . . Machines Dismantled . | . . Machines Sabotaged . | . . Overloaded Fab Kills . | . . Hacking | -11 -10 --------- Run | Yrd Mat Machines Accessed 6 | . 6 Terminals 5 | . 5 Fabricators . | . . Repair Stations 1 | . 1 Recycling Units . | . . Scanalyzers . | . . Garrison Access . | . . Total Hacks 23 | . 23 Successful 14 | . 14 Failed 9 | . 9 Catastrophic 1 | . 1 Database Lockouts . | . . Manual 9 | . 9 Terminals 21 | . 21 Fabricators . | . . Repair Stations 2 | . 2 Recycling Units . | . . Scanalyzers . | . . Garrison Access . | . . Terminal Hacks 8 | . 8 Prototype ID Bank 1 | . 1 Branch Access Points 1 | . 1 Locate Traps 4 | . 4 Disarm Traps 1 | . 1 Zone Layout 1 | . 1 Fabricator Hacks . | . . Repair Station Hacks 2 | . 2 Scan Component 1 | . 1 Repair 1 | . 1 Recycling Unit Hacks . | . . Scanalyzer . | . . Garrison Access Hacks . | . . Unauthorized Hacks 4 | . 4 Terminals 4 | . 4 Botnet 4 | . 4 Fabricators . | . . Repair Stations . | . . Recycling Units . | . . Scanalyzers . | . . Garrison Access . | . . Data Cores Recovered . | . . Used . | . . Hacking Detections 3 | . 3 Full Trace Events . | . . Feedback Events . | . . Feedback Blocked . | . . Robot Schematics Acquired . | . . Robots Built . | . . Authchips . | . . Time . | . . Total Robot Build Rating . | . . Part Schematics Acquired . | . . Parts Built . | . . Authchips . | . . Time . | . . Total Part Build Rating . | . . Parts Repaired 1 | . 1 Time 32 | . 32 Parts Recycled . | . . Recycled Matter . | . . Retrieved Matter . | . . Retrieved Components . | . . Parts Scanalyzed . | . . Part Schematics Acquired . | . . Parts Damaged . | . . Bothacking | -11 -10 ------------ Run | Yrd Mat Used RIF Installer . | . . Robots Hacked . | . . Non-combat . | . . Combat . | . . Robot Hacks Applied . | . . Relay Couplers Released . | . . Fabnet Peak Effective % . | . . Robots Rewired . | . . Allies Hacked . | . . Hacks Repelled . | . . Allies | -11 -10 -------- Run | Yrd Mat Total Allies . | . . Largest Group . | . . Highest-Rated Group . | . . Highest-Rated Ally . | . . Total Orders . | . . Ally Attacks . | . . Total Damage . | . . Kills . | . . Allies Corrupted . | . . Allies Melted . | . . Intel | -11 -10 ------- Run | Yrd Mat Robot Analysis Total . | . . Derelict Logs Recovered . | . . Drone Launches . | . . Drone Recoveries . | . . Exploration | -11 -10 ------------- Run | Yrd Mat Turns Passed 1016 | 171 845 Spaces Moved 472 | 88 384 Core 17 | 17 . Treads 117 | 71 46 Legs 338 | . 338 Wheels . | . . Hover . | . . Flight . | . . Fastest Speed 50 | 50 120 Average Speed 166 | 138 173 Slowest Speed 260 | 160 260 Overloaded Moves . | . . Propulsion Burnouts . | . . Robots Hopped . | . . Cave-ins Triggered . | . . Exploration Rate (%) 45 | 6 84 Regions Visited 1 Branch Regions . Pre-discovered Areas . | . . Known Exits Taken . | . . Unknown Exits Taken 1 | 1 . Scrap Searched . | . . Spaces Dug . | . . Terrain Destroyed 56 | . 56 Melee . | . . Projectile . | . . AOE 56 | . 56 Terrain Rammed . | . . Walls Destroyed . | . . Machines Disabled . | . . Actions | -11 -10 --------- Run | Yrd Mat Total 622 | 115 507 Wait 54 | . 54 Move 471 | 87 384 Hop . | . . Pick Up 23 | 9 14 Fast Attach 2 | 1 1 Attach 15 | 6 9 Detach . | . . Swap 3 | . 3 Drop 9 | . 9 Fire 45 | 12 33 Melee . | . . Ram . | . . Kick . | . . Crush . | . . Escape Stasis . | . . Rewire . | . . Trap . | . . Miscellaneous . | . . Route ------- -11/Scrapyard -10/Materials (discovered 4 exits: [*Mat x2] / *Min x2) History --------- Turn | Location | Event 2 | -11/Scrapyard | Discovered new exit (range 16) 172 | -11/Scrapyard | Entered Materials 317 | -10/Materials | Build established: Mutant 340 | -10/Materials | Identified exit to Mines 378 | -10/Materials | Discovered new exit (range 16) 489 | -10/Materials | Discovered new exit (range 8) 555 | -10/Materials | Repaired EM Shotgun 982 | -10/Materials | Core integrity fell below 50% 1010 | -10/Materials | Core integrity fell below 20% 1017 | -10/Materials | Destroyed by G-34 Mercenary with Small Laser Last Messages --------------- Terminal disabled. The unstable cave ceiling collapses. K-01 Serf collects debris. Ion Engine destroyed. The unstable cave ceiling collapses. K-01 Serf collects debris. The unstable cave ceiling collapses. Aluminum Leg destroyed. K-01 Serf collects debris. The unstable cave ceiling collapses. K-01 Serf collects debris. The unstable cave ceiling collapses. Aluminum Leg destroyed. Lgt. Ion Engine destroyed. EM Shotgun destroyed. K-01 Serf collects debris. U-05 Engineer builds a Wall. The unstable cave ceiling collapses. G-34 Mercenary destroyed. U-05 Engineer builds a Wall. Map ----- +----------------------------------------------------+ | ?? # #???????#[[ # # #* !#? | | ?? ## ##???????# # """ # ###+##### | | ?? ## #????????# # "T" # #?# ## | | ??####+## ###########+##+## # #?# ## "T | | ?????# + # #?# ## "" | | ????#####+## ##+######## ######### ### ## | | ????# # ## ## #### ##+# | | ????# # ## ## # | | ????# # ## ## !=# | | ????# # ## ## #######/# | | ????# # ## "T" ## ## ##### *%= | | ????# # ## """ ## # """## | | ????######## ## ## """ # "## | | ????????# ##""""#### """ # !"## | | ????????# ! #?# """ # > ""## | | ????????# ### # |"## | | ????????# # "## | | ????????# ###########"T"## # ""??# | | ??######## ##?????????#"""## ## #???# | | ??# # ##################+### #???# | | ??# # ## # ! g ; #???# | | ??# + # # * # #???##### | | ??# # # % # #???????? | | ??# # # # #???????? | | ??# # # # #???????? | | ??######## g @ # #???????? | | ?????????# # ############# #???????? | | ?????????# ##??????????## ##??????? | | ?????????# # # #??????????# #??????? | | ?????????# g ############ #??????? | | ?????????# + #??????? | | ????????## # ### #??????? | | ????????# # #?# #??????# | | ????????# # #?#######?????# | | ????????+ T + #?????????????# | | ????????# # #?????????????# | | ????????# ######## #?????????????? | | ????????## #???????# #?????????????? | | ?????????# ????????###########?????????????? | | ?????????# ????????????????????????????????? | | ?????????# ?????????????????????????????????? | | ?????????#??????????????????????????????????? | | ??????????????????????????????????????????????# | | ??????????????????????????????????????????????? | | ??????????????????????????????????????????????? | | ??????????????????????????????????????????????? | | ??????????????????????????????????????????????? | | ??????????????????????????????????????????????? | | ??????????????????????????????????????????????? | | ??????????????????????????????????????????????? | +----------------------------------------------------+ Best States ------------- Heat Dissipation 25 Energy Generation 10 Energy Capacity 250 Matter Stores 268 Matter Capacity 300 Sight Range 16 Terrain Scan Density 10 Evasion (%) 55 Recoil Reduction 2 Item Schematics ----------------- None Robot Schematics ------------------ None Fabricated ------------ Nothing Alien Tech Used ----------------- None Achievements -------------- None Challenges ------------ None Game ------ Seed LinearHoverKinecellerator Manual? 0 Play Time 00:08:20 Cumulative 198.2 hours Start 2024.09.19 @ 18:48:13 End 2024.09.19 @ 18:56:54 Sessions 1 Manual Loads 0 Difficulty Rogue Special Mode None Game No. 244 Rogue 244 Adventurer 0 Explorer 0 Win Type - Total 2 Types 2/0/0/0/0/0/0/0/0 Lore% 28 Gallery% 62 Achievement% 51 Wizard Run 0 Options --------- Layout 1 ASCII 0 Keyboard 0 Movement Numpad Keybinds 0 Fullscreen 2 Font 24/Smallcaps Map View 50x35 Zoom Use 0% Tactical HUD 0 Map Filters NONE Filters NONE Steam 1 RUN: 7cd4aea8-7b5b-4951-9d67-cffb9b0b6ccd